Cogmind - Beta 12 --- EXPLORER MODE // 2024.01.19 @ 17:02:25 Player: Olexender Result: Destroyed by G-67 Veteran with Field Laser Performance ------------- Evolutions (7) 3500 Regions Visited (24) 4800 Robots Destroyed (479) 2395 Value Destroyed (26834) 26834 Prototype IDs (66) 1320 Alien Tech Used (3) 600 Bonus (6955) 6955 TOTAL SCORE: 46404 Bonus ------- Triggered Max Security 1000 High Alert Combat Kills 2155 Follower Combat Kills 702 Entered Garrisons 400 Used RIF Installer 1000 Entered DSFs 1000 Aligned with FarCom 300 Met Zhirov 300 Scanned by Researcher 500 Friendly Fire -402 Cogmind --------- Core Integrity 0/1300 Matter 251/300 Energy 100/100 System Corruption 11% Temperature Cool (5) Movement Core (50) Location -3/Testing Parts ------- > --- POWER (3) -------- (None) > --- PROPULSION (8) --- (None) > --- UTILITY (8) ------ (None) > --- WEAPON (3) ------- (None) > --- INVENTORY (5) ---- Advanced Cryofiber Web Triangulator Energy Mantle Advanced Field Recycling Unit (0) Peak State ------------ > --- POWER ------------ Heavy Antimatter Reactor Particle Reactor Light Particle Reactor > --- PROPULSION ------- Enhanced Flexi-carbon Leg Myomer Leg Myomer Leg Advanced Myomer Leg Advanced Myomer Leg Advanced Myomer Leg Biometal Leg Biometal Leg > --- UTILITY ---------- Advanced Cryofiber Web Advanced Cooling System High-capacity Storage Unit Advanced Matter Compressor Weapon Mount Advanced Shield Generator Advanced Force Field Energy Mantle > --- WEAPON ----------- Cooled Phase Gun Omega Cannon > --- INVENTORY -------- Myomer Leg Myomer Leg Myomer Leg Myomer Leg Advanced Cryofiber Web Advanced Heat Sink Experimental Heat Sink Energy Well Advanced Gravity Neutralizer Structural Scanner Triangulator Kinecellerator Advanced Field Recycling Unit Transdimensional Reconstructor Integrated Dissipator Nova Cannon Railgun Railgun Hellfire Missile Launcher Chainsword [Rating: 181] Favorites ----------- Power Reinforced Deuterium Engine Engine Reinforced Deuterium Engine Power Core Neutrino Core Reactor Heavy Antimatter Reactor Propulsion Flexi-carbon Leg Leg Flexi-carbon Leg Utility High-capacity Storage Unit Device Structural Scanner Storage High-capacity Storage Unit Processor Enhanced Optical Array Hackware Advanced Hacking Suite Protection Improved Medium Armor Plating Weapon Enhanced Gauss Cannon Energy Gun Quantum Rifle Energy Cannon Phase Cannon Ballistic Gun Railgun Ballistic Cannon Enhanced Gauss Cannon Launcher Micro-nuke Launcher Special Weapon Field Lobotomy Kit Slashing Weapon Scythe Build | -11 -10 -10 -10 -9 -8 -7 -7 -7 -7 -6 -6 -6 -6 -6 -6 -5 -5 -4 -4 -4 -4 -3 -3 -3 ------- Run | Jun Mat Min Exi Min Mat Fac Gar Fac DSF Fac Ext Cet Arc Hub Gar Fac DSF Fac Upp Upp Zhi Pro Res Tes Slots Evolved 15 | . 1 . . . 4 2 . . . 2 . . . . . 2 . 2 . . . . 2 . Power 2 | . 1 . . . . 1 . . . . . . . . . . . . . . . . . . Propulsion 6 | . . . . . 2 . . . . 1 . . . . . 1 . 1 . . . . 1 . Utility 6 | . . . . . 2 . . . . 1 . . . . . 1 . 1 . . . . 1 . Weapon 1 | . . . . . . 1 . . . . . . . . . . . . . . . . . . Parts Attached 580 | 7 19 6 . 2 28 20 44 7 3 123 7 9 4 36 16 3 18 56 8 6 9 24 107 18 Power 81 | 1 5 1 . . 5 4 12 . . 18 1 1 1 3 2 . 2 10 1 . . 2 12 . Engine 41 | 1 5 1 . . 3 3 8 . . 13 1 . 1 . 1 . 2 2 . . . . . . Core 21 | . . . . . 2 1 4 . . 5 . 1 . 3 1 . . 4 . . . . . . Reactor 19 | . . . . . . . . . . . . . . . . . . 4 1 . . 2 12 . Propulsion 132 | 2 2 . . 2 8 1 6 4 3 20 . 1 2 16 5 1 7 18 1 3 4 1 22 3 Treads . | . . . . . . . . . . . . . . . . . . . . . . . . . Leg 132 | 2 2 . . 2 8 1 6 4 3 20 . 1 2 16 5 1 7 18 1 3 4 1 22 3 Wheel . | . . . . . . . . . . . . . . . . . . . . . . . . . Hover . | . . . . . . . . . . . . . . . . . . . . . . . . . Flight . | . . . . . . . . . . . . . . . . . . . . . . . . . Utility 219 | 2 5 3 . . 9 3 9 2 . 60 4 1 . 12 7 1 3 18 4 2 3 10 57 4 Device 171 | 1 3 2 . . 4 1 4 2 . 48 4 1 . 8 7 1 2 17 4 1 . 9 49 3 Storage 10 | 1 1 1 . . . . . . . 3 . . . . . . . . . . . . 3 1 Processor 5 | . . . . . . . . . . 3 . . . 1 . . . . . . . . 1 . Hackware 1 | . . . . . . . . . . . . . . . . . . . . . 1 . . . Protection 32 | . 1 . . . 5 2 5 . . 6 . . . 3 . . 1 1 . 1 2 1 4 . Artifact . | . . . . . . . . . . . . . . . . . . . . . . . . . Weapon 148 | 2 7 2 . . 6 12 17 1 . 25 2 6 1 5 2 1 6 10 2 1 2 11 16 11 Energy Gun 17 | . 1 1 . . 1 5 1 . . . . . . 1 . . 1 . 1 . . 1 3 1 Energy Cannon 24 | . . 1 . . . . . . . 6 1 1 . 3 . 1 1 1 . 1 . . 4 4 Ballistic Gun 45 | 2 6 . . . 4 1 7 1 . 6 1 2 1 1 2 . 1 . 1 . . 1 5 3 Ballistic Cannon 32 | . . . . . 1 4 2 . . 7 . 2 . . . . 2 6 . . 2 3 2 1 Launcher 11 | . . . . . . . . . . 2 . . . . . . . 1 . . . 5 2 1 Special Weapon 3 | . . . . . . . . . . 2 . 1 . . . . . . . . . . . . Impact Weapon . | . . . . . . . . . . . . . . . . . . . . . . . . . Slashing Weapon 16 | . . . . . . 2 7 . . 2 . . . . . . 1 2 . . . 1 . 1 Piercing Weapon . | . . . . . . . . . . . . . . . . . . . . . . . . . Special Melee Weapon . | . . . . . . . . . . . . . . . . . . . . . . . . . Unidentified Prototypes 29 | . . 1 . . 1 . . . . 5 1 1 . . . . . 3 1 . 2 3 7 4 Parts Lost 92 | . . . . . 2 2 2 . 1 15 2 9 3 2 5 . 4 8 1 1 . 2 11 22 Power 19 | . . . . . 1 . 1 . 1 3 . 1 1 1 3 . 1 2 . . . . 1 3 Propulsion 20 | . . . . . . 1 1 . . 3 . 4 1 . . . . 1 . . . . 1 8 Utility 28 | . . . . . . 1 . . . 4 1 1 . . 1 . 2 2 1 1 . . 7 7 Weapon 25 | . . . . . 1 . . . . 5 1 3 1 1 1 . 1 3 . . . 2 2 4 Highest Loss Streak 22 | . . . . . 1 1 1 . 1 10 1 5 3 1 2 . 2 4 1 1 . 1 3 22 To Critical Strikes 2 | . . . . . . . . . . . . 1 . . . . . . . . . . . 1 Average Slot Usage (%) 96 | . 99 100 100 100 98 92 95 92 89 93 96 95 80 95 91 94 92 97 99 100 100 99 98 87 Engine 9 | . 24 25 25 25 7 14 16 21 18 12 12 16 11 6 4 5 9 5 . . . . . . Core 3 | . . . . . 8 3 4 . . 4 5 1 6 11 7 5 5 5 5 5 5 1 . . Reactor 3 | . . . . . . . . . . . . . . . . . . 4 9 10 10 13 12 11 Leg 30 | . 24 25 25 25 31 26 26 28 28 30 31 27 17 26 30 33 31 34 35 35 35 35 35 32 Device 18 | . 8 12 12 12 15 8 9 10 14 19 22 24 18 13 16 22 16 20 28 25 23 21 26 23 Storage 6 | . 11 12 12 12 8 7 7 7 7 6 6 6 6 6 6 5 5 5 5 5 5 5 6 9 Processor 1 | . . . . . . . . . . . . . . 5 6 5 5 3 . . . . . . Protection 4 | . 3 . . . 7 12 11 10 7 3 . . . 3 1 . 1 4 1 4 5 5 1 . Energy Gun 1 | . 1 8 . . 4 6 4 . . . . . . 2 . . 2 . . 5 5 5 . . Energy Cannon 3 | . . 3 12 12 3 . . . . 3 6 1 6 7 9 11 6 1 4 4 2 . 3 2 Ballistic Gun 5 | . 23 12 12 12 7 . 8 3 7 1 5 8 6 6 6 5 3 . 3 . . . 6 4 Ballistic Cannon 4 | . . . . . . 11 2 7 7 6 6 8 6 2 . . 3 10 6 5 7 6 1 1 Naked Turns 2 | . . . . . . . . . . . . . . . . . . . . . . . . 2 Heaviest Build 172 | 18 21 38 36 36 57 66 94 94 94 119 104 108 95 114 108 83 108 138 129 123 123 137 172 171 Greatest Support 224 | 20 20 20 20 26 62 62 61 68 76 112 107 95 60 108 108 114 114 156 155 155 185 197 221 224 Greatest Overweight (x) 2 | . 1 1 1 1 1 1 1 1 1 2 1 2 2 1 1 . . 1 . . . . . 1 Average Overweight (x) . | . . 1 1 1 . . . 1 1 . . 1 1 . . . . . . . . . . . Largest Inventory Capacity 20 | 10 10 15 15 15 15 15 15 15 15 20 20 20 20 20 20 20 20 20 20 20 20 20 20 20 Average Capacity 17 | 8 9 13 15 15 15 15 15 15 15 18 20 20 20 20 20 20 20 20 20 20 20 20 20 19 Most Carried 20 | 5 9 15 15 15 15 15 15 15 15 20 20 18 17 20 20 19 20 20 20 20 20 20 20 20 Average Carried 16 | 1 5 11 14 14 14 14 14 14 15 17 18 17 16 17 19 17 19 17 18 19 19 19 18 17 Final Capacity 20 | 10 10 15 15 15 15 15 15 15 15 20 20 20 20 20 20 20 20 20 20 20 20 20 20 5 Final Carried 20 | 1 9 15 14 15 15 15 15 15 15 20 19 17 17 18 20 18 20 20 20 20 20 20 17 4 Class Distribution -------------------- 28% | Hacker-Mutant 19% | Scavenger-Skirmisher 17% | Hacker-Tank 11% | Scavenger-Mutant 10% | Hacker-Skirmisher 7% | Scavenger-Tank 3% | Hacker-Gunner Dominant Class ---------------- Hacker-Mutant | -10/Materials Hacker-Mutant | -10/Mines Hacker-Mutant | -10/Exiles Hacker-Mutant | -9/Mines Hacker-Mutant | -8/Materials Scavenger-Skirmisher | -7/Factory Scavenger-Mutant | -7/Garrison Hacker-Mutant | -7/Factory Hacker-Skirmisher | -7/DSF Hacker-Skirmisher | -6/Factory Scavenger-Skirmisher | -6/Extension Scavenger-Skirmisher | -6/Cetus Scavenger-Skirmisher | -6/Archives Scavenger-Skirmisher | -6/Hub_04(d) Scavenger-Skirmisher | -6/Garrison Scavenger-Skirmisher | -5/Factory Scavenger-Skirmisher | -5/DSF Hacker-Mutant | -4/Factory Hacker-Gunner | -4/Upper Caves Hacker-Tank | -4/Upper Caves Hacker-Tank | -4/Zhirov Hacker-Mutant | -3/Proximity Caves Scavenger-Tank | -3/Research Scavenger-Tank | -3/Testing Resources | -11 -10 -10 -10 -9 -8 -7 -7 -7 -7 -6 -6 -6 -6 -6 -6 -5 -5 -4 -4 -4 -4 -3 -3 -3 ----------- Run | Jun Mat Min Exi Min Mat Fac Gar Fac DSF Fac Ext Cet Arc Hub Gar Fac DSF Fac Upp Upp Zhi Pro Res Tes Matter Collected 17286 | 227 580 104 . 40 564 352 1370 66 . 4393 202 821 115 600 758 30 349 1978 777 265 . 844 2846 5 Remotely . | . . . . . . . . . . . . . . . . . . . . . . . . . Salvage Created 21246 | . 506 . . . 1063 336 1045 57 . 5262 320 784 269 1031 1739 . 132 2332 412 663 . 349 4361 585 Parts 970 | . 29 . . . 48 17 45 1 . 287 16 33 7 60 66 . 7 97 11 31 . 11 193 11 Haulers Intercepted 1 | . . . . . . . . . . . . . . . . . . . . . . . 1 . Recyclers Shooed 10 | . . . . . . . . . . 6 . . . . . . . 3 . . . . 1 . Parts Field Recycled 122 | . . . . . . . . . . 36 . . . . . . . 18 . . . 29 39 . Retrieved Matter 1987 | . . . . . . . . . . 606 . . . . . . . 231 . . . 185 965 . Parts Self-Destructed . | . . . . . . . . . . . . . . . . . . . . . . . . . Prevented . | . . . . . . . . . . . . . . . . . . . . . . . . . Kills | -11 -10 -10 -10 -9 -8 -7 -7 -7 -7 -6 -6 -6 -6 -6 -6 -5 -5 -4 -4 -4 -4 -3 -3 -3 ------- Run | Jun Mat Min Exi Min Mat Fac Gar Fac DSF Fac Ext Cet Arc Hub Gar Fac DSF Fac Upp Upp Zhi Pro Res Tes Combat Hostiles Destroyed 398 | . 8 . . . 21 9 23 1 . 99 7 19 4 14 33 . 4 51 10 14 . 14 57 10 Melee 3 | . . . . . . 1 . . . . . . . . . . . 2 . . . . . . Guns 113 | . 8 . . . 17 3 21 . . 1 4 7 1 4 10 . 2 . . 5 . 2 28 . Cannons 256 | . . . . . 4 5 2 1 . 91 3 11 2 10 23 . 2 48 10 8 . 8 20 8 AOE 15 | . . . . . . . . . . 7 . . . . . . . 1 . . . 4 1 2 Classes Destroyed 23 | . 4 . . . 4 3 3 . . 4 . . . . . . . . . . . 2 1 2 Worker 22 | . . . . . 1 . . . . 5 . . . 3 . . . 8 . . . . 5 . Builder 22 | . . . . . . 1 . . . 11 . . . 1 . . . 5 . . . . 4 . Tunneler 2 | . . . . . . . . . . 1 . . . . . . . 1 . . . . . . Hauler 1 | . . . . . . . . . . . . . . . . . . . . . . . 1 . Recycler 14 | . 3 . . . . . . . . 7 . . . . . . . 3 . . . . 1 . Carrier 1 | . . . . . . . . . . . . . . . . . . . . . . . . 1 Mechanic 4 | . . . . . . . . . . 1 . . . . . . . 1 . . . . 1 1 Operator 6 | . . . . . 1 . . . . 3 . . . 1 . . . . . . . . 1 . Drone 1 | . . . . . . . . . . . . . . . . . . . . . . 1 . . Watcher 31 | . 3 . . . 2 . 1 . . 8 1 1 . 5 . . . 6 . . . . 4 . Swarmer 48 | . 4 . . . 3 . 3 . . 4 3 3 . . 6 . . 10 3 6 . 1 2 . Saboteur 1 | . . . . . . . . . . . . . . . . . . . . . . . . 1 Grunt 141 | . 4 . . . 7 4 5 . . 44 . 7 . 3 18 . . 14 6 4 . . 19 6 Brawler 9 | . . . . . 2 . 3 . . 1 . 1 . . . . . 2 . . . . . . Duelist 12 | . . . . . . 1 . . . . 1 1 . . 1 . . 5 . . . . 1 2 Protector 6 | . . . . . . . 1 . . 1 . . . . . . . . . . . 4 . . Sentry 61 | . . . . . 9 3 5 1 . 13 2 . 4 5 3 . . 5 1 1 . 1 8 . Demolisher 4 | . . . . . . . . . . . . . . . . . . . . . . 4 . . Specialist 17 | . . . . . . . . . . 15 . . . . 2 . . . . . . . . . Hunter 33 | . . . . . . . 3 . . 4 . 2 . 4 2 . 4 4 . 2 . 2 6 . Programmer 52 | . . . . . . 1 2 . . 12 . 1 . 2 1 . . 11 . 1 . 1 19 1 Heavy 5 | . . . . . . . . . . 5 . . . . . . . . . . . . . . Behemoth 5 | . . . . . . . 1 . . . 1 . . . . . . . . . . 1 2 . Cetus Guard 4 | . . . . . . . . . . . . 4 . . . . . . . . . . . . Best Kill Streak 12 | . 3 . . . 7 3 4 1 . 8 3 5 4 5 5 . 1 11 3 7 . 5 10 12 Combat Bots Only 10 | . 2 . . . 6 3 4 1 . 8 3 5 4 3 5 . 1 6 3 7 . 5 6 10 Max Kills in Single Turn 5 | . 2 . . . 2 1 1 1 . 4 1 2 1 2 2 . 1 5 1 1 . 1 3 4 Gunslinging 1 | . 1 . . . . . . . . . . . . . . . . . . . . . . . Exploded 3 | . . . . . . . . . . 3 . . . . . . . 1 . . . 1 1 2 Melee 1 | . . . . . . 1 . . . . . . . . . . . 1 . . . . . . Uniques/NPCs Destroyed . | . . . . . . . . . . . . . . . . . . . . . . . . . Combat | -11 -10 -10 -10 -9 -8 -7 -7 -7 -7 -6 -6 -6 -6 -6 -6 -5 -5 -4 -4 -4 -4 -3 -3 -3 -------- Run | Jun Mat Min Exi Min Mat Fac Gar Fac DSF Fac Ext Cet Arc Hub Gar Fac DSF Fac Upp Upp Zhi Pro Res Tes Damage Taken 22675 | . 216 . . . 787 633 934 . 880 3883 205 1379 242 788 1125 . 567 2862 249 321 . 1008 3049 3547 Core 2572 | . 39 . . . 84 46 86 . 88 323 28 121 17 28 152 . 57 136 . 27 . 77 227 1036 Absorbed by Shields 6058 | . . . . . . . 17 . . 2538 160 . . . . . . 133 100 128 . 379 1736 867 Redirected to Shielding 162 | . 6 . . . . 5 3 . . 22 . . . . . . . . . . . 117 9 . Regen/Repaired (Parts) 576 | . 74 . . . 73 . . . . 47 . . . . . . . 382 . . . . . . Core Remaining (%) 75 | 100 . . . 84 84 . . . 68 . . . . . 21 . 94 . . . . 79 . . Volleys Fired 1271 | . 44 . . . 88 26 97 2 . 301 25 57 9 51 104 . 21 133 24 30 . 52 188 19 Largest 3 | . 2 . . . 2 3 3 2 . 3 3 3 3 3 3 . 3 3 3 3 . 3 3 3 Hottest 261 | . 40 . . . 119 163 152 103 . 160 158 153 153 208 208 . 208 227 227 239 . 253 261 175 Shots Fired 3024 | . 87 . . . 176 65 222 3 . 521 73 169 27 138 290 . 61 335 66 86 . 129 544 32 Gun 1186 | . 87 . . . 140 20 200 1 . 41 24 65 9 62 117 . 16 . 10 26 . 42 313 13 Cannon 1808 | . . . . . 36 45 22 2 . 469 49 103 18 76 173 . 45 335 56 60 . 70 231 18 Launcher 25 | . . . . . . . . . . 7 . . . . . . . . . . . 17 . 1 Special 5 | . . . . . . . . . . 4 . 1 . . . . . . . . . . . . Kinetic 1947 | . 87 . . . 88 45 154 3 . 316 48 149 18 64 117 . 31 300 48 30 . 72 358 19 Thermal 1017 | . . . . . 88 20 68 . . 194 25 19 9 74 173 . 30 35 18 26 . 40 186 12 Explosive 25 | . . . . . . . . . . 7 . . . . . . . . . . . 17 . 1 Electromagnetic 30 | . . . . . . . . . . . . . . . . . . . . 30 . . . . Robot Hit Streak 64 | . 23 . . . 26 23 36 7 . 64 28 31 49 63 38 . 17 38 19 10 . 36 47 29 Robot Miss Streak 5 | . 3 . . . 2 1 5 . . 3 5 3 . 2 2 . 3 3 2 4 . 1 3 . Penetration Max 2 | . . . . . . . 1 . . 1 . 1 . 1 1 . 1 1 . 1 . 1 2 . Secondary Targets 4 | . 1 . . . 3 . . . . . . . . . . . . . . . . . . . Max Gunslinging Chain 1 | . 1 . . . 1 . . . . . . . . . . . . . . . . . . . Shots Hit Robots 2213 | . 63 . . . 137 51 149 1 . 385 54 139 22 102 153 . 43 276 41 49 . 112 403 33 Core Hits 950 | . 21 . . . 46 21 133 1 . 179 15 46 11 40 56 . 13 114 19 24 . 48 141 22 Critical Kills 19 | . . . . . . . . . . 2 1 3 1 1 . . 1 . . . . . 10 . Critical Parts Destroyed 13 | . 1 . . . . . . . . 1 1 4 . . 1 . 1 . . . . . 4 . Critical Strikes 141 | . 1 . . . 5 2 2 1 . 31 3 10 1 2 1 . 6 46 1 1 . 10 16 2 Burn 6 | . . . . . 5 . . . . . . . . 1 . . . . . . . . . . Meltdown 13 | . . . . . . . . . . 1 1 1 1 . . . . . . . . . 9 . Destroy 19 | . 1 . . . . . . . . 2 1 6 . 1 1 . 2 . . . . . 5 . Blast 99 | . . . . . . 2 1 1 . 28 1 3 . . . . 4 43 1 1 . 10 2 2 Sever 4 | . . . . . . . 1 . . . . . . . . . . 3 . . . . . . Melee Attacks 62 | . . . . . . 1 36 . . 6 . . . . . . . 13 . . . 2 . 4 Impact . | . . . . . . . . . . . . . . . . . . . . . . . . . Slashing 62 | . . . . . . 1 36 . . 6 . . . . . . . 13 . . . 2 . 4 Piercing . | . . . . . . . . . . . . . . . . . . . . . . . . . Sneak Attacks . | . . . . . . . . . . . . . . . . . . . . . . . . . Combat Hostiles . | . . . . . . . . . . . . . . . . . . . . . . . . . Follow-up Attacks . | . . . . . . . . . . . . . . . . . . . . . . . . . Damage Inflicted 78691 | . 793 . . . 2461 1257 3802 74 . 19232 1663 3730 641 3166 4554 . 1193 11553 1333 1735 . 4159 14178 3167 Guns 20309 | . 793 . . . 1919 310 2944 . . 692 412 1429 181 1262 1380 . 336 . 112 448 . 963 6827 301 Cannons 51253 | . . . . . 542 842 458 74 . 16560 1248 2301 460 1904 3174 . 857 9614 1221 1135 . 2167 7011 1685 Explosions 5981 | . . . . . . 72 . . . 1688 . . . . . . . 1628 . 152 . 1029 340 1072 Melee 1111 | . . . . . . 33 400 . . 258 . . . . . . . 311 . . . . . 109 Ramming 37 | . . . . . . . . . . 34 3 . . . . . . . . . . . . . Kinetic 47824 | . 793 . . . 1002 842 2231 74 . 13276 917 3151 367 1295 1380 . 604 8596 971 561 . 2218 7893 1653 Thermal 24588 | . . . . . 1459 310 1171 . . 4452 743 579 274 1871 3174 . 589 1814 362 600 . 912 5945 333 Explosive 4557 | . . . . . . 72 . . . 1212 . . . . . . . 832 . . . 1029 340 1072 Electromagnetic 574 | . . . . . . . . . . . . . . . . . . . . 574 . . . . Impact . | . . . . . . . . . . . . . . . . . . . . . . . . . Slashing 1111 | . . . . . . 33 400 . . 258 . . . . . . . 311 . . . . . 109 Piercing . | . . . . . . . . . . . . . . . . . . . . . . . . . Highest Corruption 11 | . . . . . . . 1 1 1 5 1 1 1 2 2 . . 2 . . . . 9 11 Average Corruption 2 | . . . . . . . 1 1 1 2 1 1 1 1 2 . . 1 . . . . 3 9 Corruption Purged 17 | . . . . . . . . . . 4 . . . . . . . 3 . . . . 10 . Corruption Blocked 5 | . . . . . . . . . . 5 . . . . . . . . . . . . . . Effects 179 | . . . . . . . 1 2 . 80 2 3 1 18 17 . . 7 . . . . 36 12 Message Errors 47 | . . . . . . . 1 2 . 20 . 2 . 4 2 . . 1 . . . . 8 7 Matter Fused 32 | . . . . . . . . . . 16 . . . 5 4 . . . . . . . 6 1 Heat Flow Errors 19 | . . . . . . . . . . 8 . . . 3 3 . . 2 . . . . 3 . Energy Discharges 21 | . . . . . . . . . . 13 . . . 3 2 . . 2 . . . . 1 . Parts Rejected 3 | . . . . . . . . . . 1 . . . . . . . . . . . . 2 . Parts Fused 1 | . . . . . . . . . . . 1 . . . . . . . . . . . . . Data Loss (minor) 24 | . . . . . . . . . . 9 1 . . 2 3 . . 1 . . . . 6 2 Data Loss (major) 8 | . . . . . . . . . . 5 . 1 . . 1 . . . . . . . 1 . Misfires 7 | . . . . . . . . . . 4 . . . . . . . 1 . . . . 2 . Alerts 6 | . . . . . . . . . . 1 . . 1 . 1 . . . . . . . 2 1 Weapon Failures 11 | . . . . . . . . . . 3 . . . 1 1 . . . . . . . 5 1 Overload Shots . | . . . . . . . . . . . . . . . . . . . . . . . . . Overflow Damage 3106 | . . . . . . 5 78 . . 1338 32 36 . 47 38 . 17 723 15 8 . 27 337 405 Projectiles 2530 | . . . . . . 5 78 . . 1182 32 36 . 47 38 . 17 403 15 8 . 25 334 310 Explosions 535 | . . . . . . . . . . 138 . . . . . . . 301 . . . 2 3 91 Melee 41 | . . . . . . . . . . 18 . . . . . . . 19 . . . . . 4 Knockbacks 182 | . . . . . . 9 3 . . 61 6 8 . 1 . . 1 72 5 2 . 3 9 2 Impact 1 | . . . . . . . . . . . 1 . . . . . . . . . . . . . Kinetic 169 | . . . . . . 8 3 . . 57 4 8 . 1 . . 1 68 5 2 . 3 8 1 Secondary 12 | . . . . . . 1 . . . 4 1 . . . . . . 4 . . . . 1 1 Self-Inflicted Damage 637 | . . . . . . 52 20 . . 438 . . . . . . . 72 . . . . . 55 Shots 14 | . . . . . . 1 1 . . 10 . . . . . . . 1 . . . . . 1 Rammed . | . . . . . . . . . . . . . . . . . . . . . . . . . Targets Rammed 2 | . . . . . . . . . . 1 1 . . . . . . . . . . . . . Kicked 2 | . . . . . . . . . . 1 1 . . . . . . . . . . . . . Crushed . | . . . . . . . . . . . . . . . . . . . . . . . . . Highest Temperature 588 | . 22 . . . 111 541 354 54 17 481 141 330 45 416 588 . 9 561 319 275 . 315 524 . Average Temperature 98 | . 9 . . . 29 234 98 26 17 82 49 89 16 103 164 . 3 128 108 88 . 66 92 . Received Heat Transfer 5633 | . 135 . . . 558 354 225 . . 1095 24 570 36 327 504 . . 539 114 68 . 42 414 628 Effects 84 | . . . . . . 23 4 . . 21 . . . 6 10 . . 6 1 1 . . 12 . Shutdowns 34 | . . . . . . 12 . . . 9 . . . 1 4 . . 5 . . . . 3 . Energy Bleed 11 | . . . . . . . . . . 7 . . . 1 . . . 1 . 1 . . 1 . Interference 18 | . . . . . . 3 3 . . 4 . . . 3 . . . . 1 . . . 4 . Matter Decay 8 | . . . . . . 3 . . . 1 . . . 1 1 . . . . . . . 2 . Short Circuit 4 | . . . . . . . 1 . . . . . . . 1 . . . . . . . 2 . Damage (minor) 5 | . . . . . . 5 . . . . . . . . . . . . . . . . . . Damage (major) 4 | . . . . . . . . . . . . . . . 4 . . . . . . . . . Siege Activations . | . . . . . . . . . . . . . . . . . . . . . . . . . Robots Corrupted 1 | . . . . . . . . . . . . . . . . . . . . 1 . . . . Combat Hostiles 1 | . . . . . . . . . . . . . . . . . . . . 1 . . . . Parts Fried 2 | . . . . . . . . . . 1 . . . . . . . . . 1 . . . . Impact Corruptions 4 | . . . . . . . . . . 1 1 . . . . . . 2 . . . . . . Robots Melted 13 | . . . . . . . . . . 1 1 1 1 . . . . . . . . . 9 . Combat Hostiles 10 | . . . . . . . . . . . . 1 1 . . . . . . . . . 8 . Parts Melted 63 | . . . . . 6 . 4 . . 10 2 1 2 5 8 . . 1 . . . . 24 . Heat Transferred 31051 | . . . . . 3108 518 2455 . . 5780 981 703 333 2485 4439 . 792 1623 370 655 . 871 5550 388 Parts Sabotaged 2 | . . . . . . . . . . . . . . . . . . . . . . . . 2 Parts Stolen . | . . . . . . . . . . . . . . . . . . . . . . . . . Parts Stripped . | . . . . . . . . . . . . . . . . . . . . . . . . . Power Chain Reactions 1 | . . . . . . . . . . . . . . . . . . . . 1 . . . . Missiles Intercepted . | . . . . . . . . . . . . . . . . . . . . . . . . . Alert | -11 -10 -10 -10 -9 -8 -7 -7 -7 -7 -6 -6 -6 -6 -6 -6 -5 -5 -4 -4 -4 -4 -3 -3 -3 ------- Run | Jun Mat Min Exi Min Mat Fac Gar Fac DSF Fac Ext Cet Arc Hub Gar Fac DSF Fac Upp Upp Zhi Pro Res Tes Peak Influence 1883 | . 136 . . . 198 306 1798 746 402 383 251 262 112 286 1472 573 380 813 . . . . 381 1883 Initial 700 | . . . . . . 24 170 700 402 152 34 . . 26 50 573 308 148 . . . . . 124 Average 260 | . 24 . . . 98 151 811 723 398 110 134 90 93 78 844 573 327 481 . . . . 114 1643 Maximum Alert Level 5 | . . . . . . 1 5 3 2 1 1 1 . 1 4 2 1 3 . . . . 1 5 Low Security (%) 66 | 100 100 100 . 100 100 70 8 . . 86 73 85 100 91 9 . . 4 . . . . 78 . Level 1 13 | . . . . . . 29 21 . 36 13 26 14 . 8 14 . 100 18 . . . . 21 . Level 2 9 | . . . . . . . 10 . 63 . . . . . 18 100 . 74 . . . . . . Level 3 5 | . . . . . . . 32 100 . . . . . . 18 . . 2 . . . . . . Level 4 4 | . . . . . . . 21 . . . . . . . 38 . . . . . . . . . Level 5 . | . . . . . . . 5 . . . . . . . . . . . . . . . . . High Security . | . . . . . . . . . . . . . . . . . . . . . . . . . Max Security . | . . . . . . . . . . . . . . . . . . . . . . . . 99 Squads Dispatched 99 | . 1 . . . 3 6 . . . 42 . 3 . 6 . . 1 16 . . . . 9 12 Investigation 31 | . 1 . . . 1 2 . . . 11 . 3 . 3 . . . 8 . . . . 2 . Extermination 27 | . . . . . . 1 . . . 12 . . . 2 . . . 6 . . . . 6 . Reinforcement 22 | . . . . . 1 . . . . 18 . . . 1 . . 1 . . . . . 1 . Assault 14 | . . . . . . . . . . . . . . . . . . 2 . . . . . 12 Garrison 5 | . . . . . 1 3 . . . 1 . . . . . . . . . . . . . . Intercept . | . . . . . . . . . . . . . . . . . . . . . . . . . Searches Triggered . | . . . . . . . . . . . . . . . . . . . . . . . . . Construction Impeded 4 | . . . . . . . . . . 4 . . . . . . . . . . . . . . Haulers Reinforced 1 | . . . . . . . . . . . . . . . . . . . . . . . 1 . Active Scanning Responses . | . . . . . . . . . . . . . . . . . . . . . . . . . Cargo Convoy Interrupts 1 | . . . . . . . . . . 1 . . . . . . . . . . . . . . Stealth | -11 -10 -10 -10 -9 -8 -7 -7 -7 -7 -6 -6 -6 -6 -6 -6 -5 -5 -4 -4 -4 -4 -3 -3 -3 --------- Run | Jun Mat Min Exi Min Mat Fac Gar Fac DSF Fac Ext Cet Arc Hub Gar Fac DSF Fac Upp Upp Zhi Pro Res Tes Distress Signals 21 | . 2 . . . 1 . . . . 1 2 1 . . . . . . . . . 12 2 . Communications Jammed 27 | . . . . . . . . . . . . . . . . . . 19 . . . . 8 . Distress Signals 24 | . . . . . . . . . . . . . . . . . . 19 . . . . 5 . Times Spotted 544 | . 16 . . . 28 9 34 1 1 122 13 23 7 22 32 . 5 67 10 14 . 16 70 54 Peak Tracking Total 22 | . 4 . . . 3 3 4 1 1 6 3 5 2 5 5 . 2 5 2 3 . 4 7 22 Tactical Retreats 15 | . . . . . . . 1 . . 4 . 2 . . 2 . . 3 . . . 2 . 1 Traps | -11 -10 -10 -10 -9 -8 -7 -7 -7 -7 -6 -6 -6 -6 -6 -6 -5 -5 -4 -4 -4 -4 -3 -3 -3 ------- Run | Jun Mat Min Exi Min Mat Fac Gar Fac DSF Fac Ext Cet Arc Hub Gar Fac DSF Fac Upp Upp Zhi Pro Res Tes Traps Triggered 31 | . 4 . . . . 1 9 . 1 3 . . . 3 7 . . 3 . . . . . . Indirectly . | . . . . . . . . . . . . . . . . . . . . . . . . . Trap Hack Attempts . | . . . . . . . . . . . . . . . . . . . . . . . . . Triggered . | . . . . . . . . . . . . . . . . . . . . . . . . . Disarmed 18 | . 6 . . . . . . . . . . . . 6 . . . . . . . . 6 . Reprogrammed 25 | . 4 . . . . . . . . 10 . . . . . . . 4 . . . . 7 . Reused 4 | . . . . . . . . . . 4 . . . . . . . . . . . . . . Traps Extracted . | . . . . . . . . . . . . . . . . . . . . . . . . . Installed . | . . . . . . . . . . . . . . . . . . . . . . . . . Triggered 7 | . . . . . . . . . . 5 . . . . . . . . 2 . . . . . Machines | -11 -10 -10 -10 -9 -8 -7 -7 -7 -7 -6 -6 -6 -6 -6 -6 -5 -5 -4 -4 -4 -4 -3 -3 -3 ---------- Run | Jun Mat Min Exi Min Mat Fac Gar Fac DSF Fac Ext Cet Arc Hub Gar Fac DSF Fac Upp Upp Zhi Pro Res Tes Machines Disabled 121 | . . . . . 1 4 12 . . 41 3 2 . 1 11 . . 33 1 2 . 2 7 1 Max in Single Turn 19 | . . . . . 1 3 2 . . 14 1 1 . 1 2 . . 19 1 1 . 1 1 1 Garrison Access 4 | . . . . . . . . . . 2 . . . . . . . 1 . . . . 1 . Garrison Relay 12 | . . . . . . . 6 . . . . . . . 6 . . . . . . . . . Phase Generator 2 | . . . . . . . 1 . . . . . . . 1 . . . . . . . . . Machines Repaired . | . . . . . . . . . . . . . . . . . . . . . . . . . Machines Sabotaged . | . . . . . . . . . . . . . . . . . . . . . . . . . Overloaded Fab Kills . | . . . . . . . . . . . . . . . . . . . . . . . . . Hacking | -11 -10 -10 -10 -9 -8 -7 -7 -7 -7 -6 -6 -6 -6 -6 -6 -5 -5 -4 -4 -4 -4 -3 -3 -3 --------- Run | Jun Mat Min Exi Min Mat Fac Gar Fac DSF Fac Ext Cet Arc Hub Gar Fac DSF Fac Upp Upp Zhi Pro Res Tes Machines Accessed 118 | . 11 1 1 . 10 1 2 1 . 33 1 3 1 7 3 1 . 14 3 1 9 . 15 . Terminals 62 | . 8 . . . 7 . 2 1 . 16 1 3 . 6 3 1 . 5 . 1 . . 8 . Fabricators 7 | . . . . . . . . . . 3 . . . . . . . 3 . . . . 1 . Repair Stations 10 | . 1 . . . 1 . . . . 3 . . . . . . . 4 . . . . 1 . Recycling Units 12 | . 2 . . . 1 . . . . 5 . . . . . . . 1 . . . . 3 . Scanalyzers 7 | . . . . . 1 . . . . 4 . . . . . . . 1 . . . . 1 . Garrison Access 5 | . . . . . . 1 . . . 2 . . . 1 . . . . . . . . 1 . Total Hacks 365 | . 34 1 1 . 29 3 3 2 . 88 2 9 25 22 5 1 . 49 7 6 48 . 30 . Successful 270 | . 34 1 1 . 25 1 2 1 . 50 1 6 25 13 2 1 . 29 7 6 48 . 17 . Failed 95 | . . . . . 4 2 1 1 . 38 1 3 . 9 3 . . 20 . . . . 13 . Catastrophic 11 | . . . . . 1 . . . . 4 . . . 2 . . . 3 . . . . 1 . Database Lockouts . | . . . . . . . . . . . . . . . . . . . . . . . . . Manual 11 | . . . 1 . 5 . . . . . . 5 . . . . . . . . . . . . Terminals 183 | . 30 . . . 20 . 3 2 . 47 2 9 . 21 5 1 . 17 . 6 . . 20 . Fabricators 27 | . . . . . . . . . . 11 . . . . . . . 13 . . . . 3 . Repair Stations 27 | . 2 . . . 3 . . . . 8 . . . . . . . 13 . . . . 1 . Recycling Units 22 | . 2 . . . 2 . . . . 11 . . . . . . . 4 . . . . 3 . Scanalyzers 17 | . . . . . 4 . . . . 9 . . . . . . . 2 . . . . 2 . Garrison Access 7 | . . . . . . 3 . . . 2 . . . 1 . . . . . . . . 1 . Terminal Hacks 202 | . 30 1 1 . 13 . 2 1 . 25 1 6 25 12 2 1 . 10 7 6 48 . 11 . Record 111 | . 13 . . . 7 . . . . 4 . 5 25 6 . . . 3 6 6 36 . . . Part Schematic 8 | . . . . . . . . . . 4 . . . . . . . . . . 4 . . . Robot Schematic 4 | . . . . . . . . . . 1 . . . 1 . . . 1 . . . . 1 . Robot Analysis 10 | . 2 . . . . . . . . 2 . . . . . . . 2 . . 4 . . . Prototype ID Bank 8 | . 3 . . . . . . . . . . . . . . . . 1 . . 4 . . . Open Door 4 | . . 1 . . . . . . . . 1 1 . . . . . . 1 . . . . . Open DSF 7 | . . . . . . . . 1 . 2 . . . . . 1 . 1 . . . . 2 . Level Access Points 1 | . . . . . 1 . . . . . . . . . . . . . . . . . . . Branch Access Points 2 | . 1 . . . 1 . . . . . . . . . . . . . . . . . . . Emergency Access Points 8 | . 1 . . . 1 . 1 . . 2 . . . 1 1 . . . . . . . 1 . Terminal Index 1 | . 1 . . . . . . . . . . . . . . . . . . . . . . . Fabricator Index 1 | . . . . . . . . . . 1 . . . . . . . . . . . . . . Scanalyzer Index 1 | . . . . . . . . . . . . . . 1 . . . . . . . . . . Unreport Threat 2 | . . . . . . . . . . 1 . . . 1 . . . . . . . . . . Locate Traps 3 | . 2 . . . . . . . . 1 . . . . . . . . . . . . . . Disarm Traps 3 | . 1 . . . . . . . . . . . . 1 . . . . . . . . 1 . Reprogram Traps 6 | . 1 . . . . . . . . 2 . . . . . . . 1 . . . . 2 . Dispatch Records 2 | . 1 . . . . . . . . 1 . . . . . . . . . . . . . . Surveillance Status 1 | . . . . . . . . . . . . . . . . . . . . . . . 1 . Recall Investigation 1 | . 1 . . . . . . . . . . . . . . . . . . . . . . . Hauler Manifests 2 | . . . . . . . . . . 1 . . . . . . . 1 . . . . . . Registered Components 1 | . . . . . . . . . . . . . . . . . . . . . . . 1 . Zone Layout 12 | . 3 . . . 3 . . . . 3 . . . 1 . . . . . . . . 2 . Security Stations 2 | . . . . . . . 1 . . . . . . . 1 . . . . . . . . . EX-Prototype ID Bank 1 | . . . 1 . . . . . . . . . . . . . . . . . . . . . Fabricator Hacks 15 | . . . . . . . . . . 7 . . . . . . . 5 . . . . 3 . Network Status 2 | . . . . . . . . . . 1 . . . . . . . 1 . . . . . . Load Schematic 9 | . . . . . . . . . . 4 . . . . . . . 3 . . . . 2 . Build 4 | . . . . . . . . . . 2 . . . . . . . 1 . . . . 1 . Repair Station Hacks 17 | . 2 . . . 2 . . . . 3 . . . . . . . 10 . . . . . . Scan Component 9 | . 1 . . . 1 . . . . 2 . . . . . . . 5 . . . . . . Repair 8 | . 1 . . . 1 . . . . 1 . . . . . . . 5 . . . . . . Recycling Unit Hacks 13 | . 2 . . . 2 . . . . 6 . . . . . . . 2 . . . . 1 . Report Inventory 9 | . 2 . . . 1 . . . . 4 . . . . . . . 1 . . . . 1 . Retrieve Components 4 | . . . . . 1 . . . . 2 . . . . . . . 1 . . . . . . Scanalyzer 14 | . . . . . 4 . . . . 7 . . . . . . . 2 . . . . 1 . Insert Component 7 | . . . . . 2 . . . . 3 . . . . . . . 1 . . . . 1 . Analyze 7 | . . . . . 2 . . . . 4 . . . . . . . 1 . . . . . . Garrison Access Hacks 5 | . . . . . . 1 . . . 2 . . . 1 . . . . . . . . 1 . Unlock Access 2 | . . . . . . 1 . . . . . . . 1 . . . . . . . . . . Seal Access 3 | . . . . . . . . . . 2 . . . . . . . . . . . . 1 . Unauthorized Hacks 4 | . . . . . 4 . . . . . . . . . . . . . . . . . . . Terminals 4 | . . . . . 4 . . . . . . . . . . . . . . . . . . . Assimilate 2 | . . . . . 2 . . . . . . . . . . . . . . . . . . . Botnet 2 | . . . . . 2 . . . . . . . . . . . . . . . . . . . Fabricators . | . . . . . . . . . . . . . . . . . . . . . . . . . Repair Stations . | . . . . . . . . . . . . . . . . . . . . . . . . . Recycling Units . | . . . . . . . . . . . . . . . . . . . . . . . . . Scanalyzers . | . . . . . . . . . . . . . . . . . . . . . . . . . Garrison Access . | . . . . . . . . . . . . . . . . . . . . . . . . . Data Cores Recovered 4 | . . . . . 1 . . . . 1 . . . 1 . . . . . . . . 1 . Used . | . . . . . . . . . . . . . . . . . . . . . . . . . Hacking Detections 80 | . 8 . . . 8 1 1 1 . 26 . 3 . 5 2 1 . 11 . 1 . . 12 . Full Trace Events 31 | . 1 . . . 2 1 . . . 11 . 3 . 3 1 . . 7 . . . . 2 . Feedback Events 3 | . . . . . . . . . . 2 . . . . . . . . . . . . 1 . Corruption 3 | . . . . . . . . . . 2 . . . . . . . . . . . . 1 . Feedback Blocked . | . . . . . . . . . . . . . . . . . . . . . . . . . Robot Schematics Acquired 4 | . . . . . . . . . . 1 . . . 1 . . . 1 . . . . 1 . Robots Built 4 | . . . . . . . . . . 3 . . . . . . . 1 . . . . . . Authchips . | . . . . . . . . . . . . . . . . . . . . . . . . . Time 160 | . . . . . . . . . . 67 . . . . . . . 93 . . . . . . Total Robot Build Rating 19 | . . . . . . . . . . 12 . . . . . . . 7 . . . . . . Part Schematics Acquired 14 | . . . . . 2 . . . . 7 . . . . . . . 1 . . 4 . . . Parts Built 2 | . . . . . . . . . . 1 . . . . . . . . . . . . 1 . Authchips . | . . . . . . . . . . . . . . . . . . . . . . . . . Time 109 | . . . . . . . . . . 53 . . . . . . . . . . . . 56 . Total Part Build Rating 12 | . . . . . . . . . . 6 . . . . . . . . . . . . 6 . Parts Repaired 6 | . 1 . . . 1 . . . . 1 . . . . . . . 3 . . . . . . Time 264 | . 13 . . . 13 . . . . 25 . . . . . . . 213 . . . . . . Parts Recycled . | . . . . . . . . . . . . . . . . . . . . . . . . . Recycled Matter . | . . . . . . . . . . . . . . . . . . . . . . . . . Retrieved Matter . | . . . . . . . . . . . . . . . . . . . . . . . . . Retrieved Components 32 | . . . . . 5 . . . . 17 . . . . . . . 10 . . . . . . Parts Scanalyzed 7 | . . . . . 2 . . . . 3 . . . . . . . 1 . . . . 1 . Part Schematics Acquired 6 | . . . . . 2 . . . . 3 . . . . . . . 1 . . . . . . Parts Damaged . | . . . . . . . . . . . . . . . . . . . . . . . . . Bothacking | -11 -10 -10 -10 -9 -8 -7 -7 -7 -7 -6 -6 -6 -6 -6 -6 -5 -5 -4 -4 -4 -4 -3 -3 -3 ------------ Run | Jun Mat Min Exi Min Mat Fac Gar Fac DSF Fac Ext Cet Arc Hub Gar Fac DSF Fac Upp Upp Zhi Pro Res Tes Used RIF Installer 2 | . . . . . . . 1 . . . . . . . 1 . . . . . . . . . Coupler Efficiency 1 | . . . . . . . . . . . . . . . 1 . . . . . . . . . Robots Hacked . | . . . . . . . . . . . . . . . . . . . . . . . . . Non-combat . | . . . . . . . . . . . . . . . . . . . . . . . . . Combat . | . . . . . . . . . . . . . . . . . . . . . . . . . Robot Hacks Applied . | . . . . . . . . . . . . . . . . . . . . . . . . . Relay Couplers Released 50 | . . . . . . . 22 . . 4 . . . . 24 . . . . . . . . . Machine Destruction 50 | . . . . . . . 22 . . 4 . . . . 24 . . . . . . . . . Fabnet Peak Effective % . | . . . . . . . . . . . . . . . . . . . . . . . . . Robots Rewired . | . . . . . . . . . . . . . . . . . . . . . . . . . Allies Hacked 1 | . . . . . . . . . . 1 . . . . . . . . . . . . . . Hacks Repelled . | . . . . . . . . . . . . . . . . . . . . . . . . . Allies | -11 -10 -10 -10 -9 -8 -7 -7 -7 -7 -6 -6 -6 -6 -6 -6 -5 -5 -4 -4 -4 -4 -3 -3 -3 -------- Run | Jun Mat Min Exi Min Mat Fac Gar Fac DSF Fac Ext Cet Arc Hub Gar Fac DSF Fac Upp Upp Zhi Pro Res Tes Total Allies 13 | . . . . . . . 2 . . 7 . 1 . . 2 . . 1 . . . . . . Largest Group 3 | . . . . . . . 2 . . 3 1 1 . . 2 1 1 1 . . . . . . Highest-Rated Group 190 | . . . . . . . 175 . . 90 85 37 . . 190 88 88 33 . . . . . . Highest-Rated Ally 95 | . . . . . . . 95 . . 90 85 37 . . 95 88 88 33 . . . . . . Total Orders 1 | . . . . . . . 1 . . . . . . . . . . . . . . . . . EXPLORE 1 | . . . . . . . 1 . . . . . . . . . . . . . . . . . Ally Attacks 74 | . . . . . . . 22 . . 22 11 1 . . 13 . 5 . . . . . . . Total Damage 3611 | . . . . . . . 956 . . 844 701 35 . . 906 . 169 . . . . . . . Kills 21 | . . . . . . . 7 . . 4 5 . . . 4 . 1 . . . . . . . Allies Corrupted . | . . . . . . . . . . . . . . . . . . . . . . . . . Allies Melted 1 | . . . . . . . . . . 1 . . . . . . . . . . . . . . Field Lobotomies 5 | . . . . . . . . . . 4 . 1 . . . . . . . . . . . . Intel | -11 -10 -10 -10 -9 -8 -7 -7 -7 -7 -6 -6 -6 -6 -6 -6 -5 -5 -4 -4 -4 -4 -3 -3 -3 ------- Run | Jun Mat Min Exi Min Mat Fac Gar Fac DSF Fac Ext Cet Arc Hub Gar Fac DSF Fac Upp Upp Zhi Pro Res Tes Robot Analysis Total 10 | . 2 . . . . . . . . 2 . . . . . . . 2 . . 4 . . . Derelict Logs Recovered 5 | . . 1 . 1 . . . . . . . . . . . . . . 1 2 . . . . Drone Launches 16 | . . . . . . . 16 . . . . . . . . . . . . . . . . . Drone Recoveries . | . . . . . . . . . . . . . . . . . . . . . . . . . Exploration | -11 -10 -10 -10 -9 -8 -7 -7 -7 -7 -6 -6 -6 -6 -6 -6 -5 -5 -4 -4 -4 -4 -3 -3 -3 ------------- Run | Jun Mat Min Exi Min Mat Fac Gar Fac DSF Fac Ext Cet Arc Hub Gar Fac DSF Fac Upp Upp Zhi Pro Res Tes Turns Passed 33345 | 45 1837 826 466 851 1781 379 2452 262 110 7790 460 852 291 1496 1655 56 301 2544 1628 1144 239 2029 3587 264 Spaces Moved 17871 | 36 886 425 245 434 1007 122 1049 128 55 3567 223 233 132 601 874 46 170 1337 1276 864 180 1514 2339 128 Core 17 | 16 1 . . . . . . . . . . . . . . . . . . . . . . . Treads . | . . . . . . . . . . . . . . . . . . . . . . . . . Legs 17854 | 20 885 425 245 434 1007 122 1049 128 55 3567 223 233 132 601 874 46 170 1337 1276 864 180 1514 2339 128 Wheels . | . . . . . . . . . . . . . . . . . . . . . . . . . Hover . | . . . . . . . . . . . . . . . . . . . . . . . . . Flight . | . . . . . . . . . . . . . . . . . . . . . . . . . Fastest Speed 50 | 50 50 190 190 190 115 122 122 190 190 116 120 190 190 120 114 115 114 115 120 120 120 120 105 117 Average Speed 145 | 88 183 190 190 190 122 168 176 190 194 169 163 197 194 184 128 115 114 119 120 120 120 120 112 117 Slowest Speed 260 | 120 190 190 190 190 190 193 195 192 195 260 190 260 260 190 190 115 115 188 120 120 120 120 120 120 Overloaded Moves . | . . . . . . . . . . . . . . . . . . . . . . . . . Propulsion Burnouts . | . . . . . . . . . . . . . . . . . . . . . . . . . Robots Hopped . | . . . . . . . . . . . . . . . . . . . . . . . . . Cave-ins Triggered . | . . . . . . . . . . . . . . . . . . . . . . . . . Teleports 1 | . . . . . . . . . . . . . . . . . . . . . . . . 1 Exploration Rate (%) 64 | 3 98 68 62 98 72 5 97 3 95 83 44 78 91 61 97 2 91 39 98 95 62 96 50 18 Regions Visited 24 Branch Regions 12 Pre-discovered Areas 4 | . . . . 1 . . . . . . . . . . . . . . . . 3 . . . Known Exits Taken 20 | 1 1 1 1 1 1 1 . 1 . 1 1 1 1 1 . 1 . 1 1 1 1 1 1 . Unknown Exits Taken . | . . . . . . . . . . . . . . . . . . . . . . . . . Scrap Searched 12 | . . . . 1 . . . . . . . . . . . . . . 4 2 . 5 . . Spaces Dug 96 | . . . . . . . 2 . . 75 . . . . 11 . . 6 . . . . 2 . Terrain Destroyed 985 | . . . . . . 21 90 1 . 396 4 8 2 10 110 . 1 168 21 44 . 45 53 11 Melee . | . . . . . . . . . . . . . . . . . . . . . . . . . Projectile 356 | . . . . . . . 4 1 . 119 4 8 2 10 24 . 1 76 21 28 . 11 47 . AOE 629 | . . . . . . 21 86 . . 277 . . . . 86 . . 92 . 16 . 34 6 11 Terrain Rammed . | . . . . . . . . . . . . . . . . . . . . . . . . . Walls Destroyed . | . . . . . . . . . . . . . . . . . . . . . . . . . Machines Disabled . | . . . . . . . . . . . . . . . . . . . . . . . . . Actions | -11 -10 -10 -10 -9 -8 -7 -7 -7 -7 -6 -6 -6 -6 -6 -6 -5 -5 -4 -4 -4 -4 -3 -3 -3 --------- Run | Jun Mat Min Exi Min Mat Fac Gar Fac DSF Fac Ext Cet Arc Hub Gar Fac DSF Fac Upp Upp Zhi Pro Res Tes Total 22431 | 48 1002 443 247 462 1388 239 1389 144 61 4687 267 504 148 883 1181 49 230 1967 1321 906 203 1612 2852 198 Wait 2022 | . 34 . . 21 224 57 102 . . 561 1 199 . 154 151 . . 377 1 . . 3 132 5 Move 17849 | 35 885 424 244 433 1006 122 1048 127 54 3566 222 232 131 601 873 45 169 1336 1275 863 179 1513 2338 128 Hop . | . . . . . . . . . . . . . . . . . . . . . . . . . Pick Up 284 | 6 15 9 1 3 16 3 13 2 . 62 6 6 4 20 6 1 11 30 5 2 7 9 42 5 Fast Attach 47 | 2 9 . . . 4 3 4 . . 7 . . . 1 2 . 3 2 3 1 . 2 3 1 Attach 147 | 5 2 . . . 9 4 7 . . 35 3 7 4 9 4 3 4 14 1 1 . 6 21 8 Detach 16 | . . . . . 2 2 3 . . 5 . . . . . . 1 1 . . . 1 . 1 Swap 390 | . 8 6 . 2 15 13 33 7 3 81 4 2 . 26 10 . 11 40 5 4 9 16 84 11 Drop 273 | . 5 4 2 3 24 8 27 6 3 56 5 1 . 16 5 . 10 21 7 5 8 8 44 5 Fire 1271 | . 44 . . . 88 26 97 2 . 301 25 57 9 51 104 . 21 133 24 30 . 52 188 19 Melee 62 | . . . . . . 1 36 . . 6 . . . . . . . 13 . . . 2 . 4 Ram . | . . . . . . . . . . . . . . . . . . . . . . . . . Kick 2 | . . . . . . . . . . 1 1 . . . . . . . . . . . . . Crush . | . . . . . . . . . . . . . . . . . . . . . . . . . Escape Stasis 66 | . . . . . . . 19 . . 5 . . . 5 26 . . . . . . . . 11 Rewire 2 | . . . . . . . . . 1 1 . . . . . . . . . . . . . . Trap . | . . . . . . . . . . . . . . . . . . . . . . . . . Miscellaneous . | . . . . . . . . . . . . . . . . . . . . . . . . . Route ------- -11/Junkyard -10/Materials (discovered 4 exits: *Mat x3 / *Min) -10/Mines (discovered 2 exits: *Mat / *Exi) -10/Exiles (discovered 2 exits: *Min x2) -9/Mines (discovered 2 exits: *Mat x2) -8/Materials (discovered 3 exits: *Fac x3) -7/Factory (discovered 3 exits: *Fac / *Low / Gar) -7/Garrison (discovered 3 exits: *Fac x3) -7/Factory -7/DSF -6/Factory (discovered 7 exits: *Fac x4 / *Low x2 / *Ext) -6/Extension (discovered 3 exits: *Fac x2 / *Cet) -6/Cetus -6/Archives (discovered 3 exits: *Fac / *Hub x2) -6/Hub_04(d) (discovered 4 exits: *Fac x3 / Gar) -6/Garrison (discovered 3 exits: *Fac x3) -5/Factory -5/DSF -4/Factory (discovered 2 exits: *Res / *Upp) -4/Upper Caves -4/Upper Caves (discovered 2 exits: *Res / *Zhi) -4/Zhirov -3/Proximity Caves -3/Research (discovered 3 exits: *Res / *Arm / *Tes) -3/Testing History --------- Turn | Location | Event 5 | -11/Junkyard | Identified exit to Materials 5 | -11/Junkyard | Discovered exit to Materials (range 16) 46 | -11/Junkyard | Entered Materials 46 | -10/Materials | Evolved 1 slot: Power x1 193 | -10/Materials | Identified exit to Materials 193 | -10/Materials | Discovered exit to Materials (range 18) 303 | -10/Materials | Build established: Hacker-Mutant 498 | -10/Materials | Discovered exit to Materials (range 16) 513 | -10/Materials | Identified exit to Mines 513 | -10/Materials | Discovered exit to Mines (range 16) 759 | -10/Materials | Discovered exit to Materials (range 5) 1501 | -10/Materials | Repaired Assault Rifle 1883 | -10/Materials | Entered Mines 1905 | -10/Mines | Met a Derelict bent on vengeance 1942 | -10/Mines | Received a Rocket Launcher from a helpful Derelict 2027 | -10/Mines | Deemed a non-threat by the Exiles lab entrance 2027 | -10/Mines | Identified exit to Exiles 2027 | -10/Mines | Discovered exit to Exiles (range 6) 2051 | -10/Mines | Found the Drone Emporium 2064 | -10/Mines | Found Prototype Device 2184 | -10/Mines | Discovered exit to Materials (range 12) 2426 | -10/Mines | Joined a pair of Derelicts in attacking an 0b10 outpost 2454 | -10/Mines | Learned 8 Materials zone layouts 2623 | -10/Mines | Found a damaged Exp. Sensor Array with a note attached 2627 | -10/Mines | Found Prototype Device 2628 | -10/Mines | Identified Exp. Sensor Array 2709 | -10/Mines | Entered Exiles 2757 | -10/Exiles | Met 8R-AWN 2770 | -10/Exiles | Identified exit to Mines 2770 | -10/Exiles | Discovered exit to Mines (range 14) 2837 | -10/Exiles | Met EX-HEX 2901 | -10/Exiles | Met EX-BIN 2924 | -10/Exiles | Aligned with FarCom system 2926 | -10/Exiles | Given EX-Vault access code 2975 | -10/Exiles | Opened EX-Vault 2994 | -10/Exiles | Found Field Lobotomy Kit 3034 | -10/Exiles | Warned to stay clear of 0b10 Research branches 3088 | -10/Exiles | Met EX-DEC 3156 | -10/Exiles | Discovered exit to Mines (range 10) 3175 | -10/Exiles | Left Exiles lab with Field Lobotomy Kit 3175 | -10/Exiles | Entered Mines 3613 | -9/Mines | Identified exit to Materials 3613 | -9/Mines | Discovered exit to Materials (range 3) 3648 | -9/Mines | A weapon hastily lodged in a ceiling crevice suddenly fell to the ground 3730 | -9/Mines | Learned location of Storage (-9) 3994 | -9/Mines | YI-UF0 nonchalantly dropped a Grenade Launcher on the ground 4011 | -9/Mines | Discovered exit to Materials (range 8) 4026 | -9/Mines | Entered Materials 4026 | -8/Materials | Evolved 4 slots: Propulsion x2, Utility x2 4027 | -8/Materials | Identified exit to Factory 4030 | -8/Materials | Identified Decoy Drone Bay 4465 | -8/Materials | Repaired Lgt. Armor Plating 4843 | -8/Materials | Garrison activated, responded to threat 5807 | -8/Materials | Entered Factory 5807 | -7/Factory | Evolved 2 slots: Power x1, Weapon x1 5808 | -7/Factory | Identified exit to Lower Caves 6124 | -7/Factory | Identified exit to Factory 6124 | -7/Factory | Discovered exit to Factory (range 16) 6186 | -7/Factory | Identified exit to Garrison 6186 | -7/Factory | Entered Garrison 6336 | -7/Garrison | Triggered checkpoint 6390 | -7/Garrison | Garrison Relay disabled 6662 | -7/Garrison | Triggered checkpoint 6668 | -7/Garrison | Identified exit to Factory 6668 | -7/Garrison | Discovered exit to Factory (range 36) 6704 | -7/Garrison | Triggered checkpoint 6758 | -7/Garrison | Discovered exit to Factory (range 10) 6792 | -7/Garrison | Triggered checkpoint 6894 | -7/Garrison | Triggered checkpoint 6938 | -7/Garrison | Found embedded Infiltrators 7064 | -7/Garrison | P-60 Hacker assimilated allied UU-PJ2(x) 7182 | -7/Garrison | Triggered checkpoint 7212 | -7/Garrison | Garrison Relay disabled 7276 | -7/Garrison | Discovered exit to Factory (range 15) 7327 | -7/Garrison | Installed Relay Interface Framework 7750 | -7/Garrison | Triggered checkpoint 7853 | -7/Garrison | Learned Factory security intel 8014 | -7/Garrison | Spotted B-75 Beast 8021 | -7/Garrison | Destroyed B-75 Beast 8068 | -7/Garrison | Garrison Relay disabled 8190 | -7/Garrison | Phase Generator disabled 8419 | -7/Garrison | Garrison Relay disabled 8504 | -7/Garrison | Garrison Relay disabled 8528 | -7/Garrison | Garrison Relay disabled 8638 | -7/Garrison | Entered Factory 8900 | -7/Factory | Identified exit to DSF 8900 | -7/Factory | Entered DSF 8900 | -7/DSF | Met a pair of Sappers preparing to destroy DSF 8929 | -7/DSF | Additional patrols routed to DSF 8980 | -7/DSF | Discovered exit to Factory (range 15) 9010 | -7/DSF | Entered Factory 9010 | -6/Factory | Evolved 2 slots: Propulsion x1, Utility x1 9196 | -6/Factory | Build established: Hacker-Skirmisher 9603 | -6/Factory | Identified exit to Factory 9603 | -6/Factory | Discovered exit to Factory (range 9) 9750 | -6/Factory | Cargo convoy interrupted 9860 | -6/Factory | Found Prototype Processor 9861 | -6/Factory | Identified Exp. Targeting Computer 10546 | -6/Factory | Build established: Hacker-Tank 10923 | -6/Factory | Build established: Hacker-Skirmisher 11538 | -6/Factory | Build established: Hacker-Tank 11661 | -6/Factory | Discovered exit to Factory (range 15) 11684 | -6/Factory | Destroyed 8 combat bots 12326 | -6/Factory | Repaired Force Field 12470 | -6/Factory | Discovered exit to Factory (range 5) 12565 | -6/Factory | Build established: Hacker-Skirmisher 13250 | -6/Factory | Identified exit to Extension 13250 | -6/Factory | Discovered exit to Extension (range 15) 13886 | -6/Factory | Identified exit to Lower Caves 13886 | -6/Factory | Discovered exit to Lower Caves (range 4) 13971 | -6/Factory | Assimilated H-66 Slayer with FLK Orb 13974 | -6/Factory | Assimilated H-66 Slayer with FLK Orb 14000 | -6/Factory | Lost 10 parts (2p3n3u2w) 14195 | -6/Factory | P-60 Hacker assimilated allied Slayer 5a 14351 | -6/Factory | Discovered exit to Lower Caves (range 15) 14395 | -6/Factory | Build established: Scavenger-Skirmisher 14758 | -6/Factory | Build established: Scavenger-Mutant 15136 | -6/Factory | Fabricated Adv. Cooling System (x1) 15346 | -6/Factory | Discovered exit to Factory (range 8) 15357 | -6/Factory | Assimilated H-61 Shepherd with FLK Orb 15668 | -6/Factory | Fabricated B-48 Gladiator? 16405 | -6/Factory | Spotted B-75 Beast 16409 | -6/Factory | Assimilated B-75 Beast with FLK Orb 16800 | -6/Factory | Entered Extension 16800 | -6/Extension | Accompanied by 1 ally 16917 | -6/Extension | Spotted B-75 Beast 16932 | -6/Extension | Allies destroyed B-75 Beast 16940 | -6/Extension | Spotted B-75 Beast 16951 | -6/Extension | Destroyed B-75 Beast 16997 | -6/Extension | Discovered exit to Factory (range 3) 17170 | -6/Extension | Build established: Scavenger-Skirmisher 17192 | -6/Extension | Identified exit to Cetus 17192 | -6/Extension | Discovered exit to Cetus (range 16) 17194 | -6/Extension | Discovered exit to Factory (range 15) 17260 | -6/Extension | Entered Cetus 17287 | -6/Cetus | Spotted Cetus Guard 17287 | -6/Cetus | Spotted Cetus Guard 17290 | -6/Cetus | Spotted Cetus Guard 17291 | -6/Cetus | Destroyed Cetus Guard 17306 | -6/Cetus | Spotted Cetus Guard 17309 | -6/Cetus | Destroyed Cetus Guard 17321 | -6/Cetus | Destroyed Cetus Guard 17338 | -6/Cetus | Destroyed Cetus Guard 17657 | -6/Cetus | Assimilated P-60 Hacker with FLK Orb 17855 | -6/Cetus | Core integrity fell below 50% 17887 | -6/Cetus | Lost 3 parts (1p2n) 18026 | -6/Cetus | Identified exit to Archives 18026 | -6/Cetus | Discovered exit to Archives (range 15) 18073 | -6/Cetus | Lost 5 parts (2n1u2w) 18112 | -6/Cetus | Entered Archives 18189 | -6/Archives | Identified exit to Hub_04(d) 18189 | -6/Archives | Discovered exit to Hub_04(d) (range 16) 18198 | -6/Archives | Lost 3 parts (1p1n1w) 18219 | -6/Archives | Unable to access archive contents 18238 | -6/Archives | Unable to access archive contents 18245 | -6/Archives | Discovered exit to Factory (range 14) 18257 | -6/Archives | Unable to access archive contents 18264 | -6/Archives | Discovered exit to Hub_04(d) (range 16) 18276 | -6/Archives | Unable to access archive contents 18295 | -6/Archives | Unable to access archive contents 18403 | -6/Archives | Entered Hub_04(d) 18433 | -6/Hub_04(d) | Discovered exit to Factory (range 14) 18918 | -6/Hub_04(d) | Discovered exit to Factory (range 6) 19436 | -6/Hub_04(d) | Discovered exit to Factory (range 20) 19894 | -6/Hub_04(d) | Spotted B-75 Beast 19899 | -6/Hub_04(d) | Identified exit to Garrison 19899 | -6/Hub_04(d) | Entered Garrison 20140 | -6/Garrison | Triggered checkpoint 20164 | -6/Garrison | Garrison Relay disabled 20245 | -6/Garrison | Garrison Relay disabled 20368 | -6/Garrison | Triggered checkpoint 20374 | -6/Garrison | Triggered checkpoint 20415 | -6/Garrison | Spotted B-75 Beast 20458 | -6/Garrison | Learned Factory security intel 20573 | -6/Garrison | Garrison Relay disabled 20602 | -6/Garrison | Garrison Relay disabled 20639 | -6/Garrison | Triggered checkpoint 20642 | -6/Garrison | Triggered checkpoint 20690 | -6/Garrison | Discovered exit to Factory (range 4) 20699 | -6/Garrison | Phase Generator disabled 20711 | -6/Garrison | Spotted B-75 Beast 20852 | -6/Garrison | Expanded RIF knowledge: Coupler Efficiency 20875 | -6/Garrison | Discovered exit to Factory (range 10) 20884 | -6/Garrison | Triggered checkpoint 20914 | -6/Garrison | Garrison Relay disabled 21030 | -6/Garrison | Triggered checkpoint 21033 | -6/Garrison | Triggered checkpoint 21144 | -6/Garrison | Found embedded Infiltrators 21161 | -6/Garrison | Discovered exit to Factory (range 13) 21182 | -6/Garrison | Triggered checkpoint 21211 | -6/Garrison | Garrison Relay disabled 21268 | -6/Garrison | Spotted B-86 Titan 21287 | -6/Garrison | Allies destroyed B-86 Titan 21554 | -6/Garrison | Entered Factory 21554 | -5/Factory | Accompanied by 1 ally 21554 | -5/Factory | Evolved 2 slots: Propulsion x1, Utility x1 21609 | -5/Factory | Identified exit to DSF 21610 | -5/Factory | Entered DSF 21610 | -5/DSF | Accompanied by 1 ally 21647 | -5/DSF | Additional patrols routed to DSF 21711 | -5/DSF | Identified exit to Factory 21711 | -5/DSF | Discovered exit to Factory (range 16) 21911 | -5/DSF | Entered Factory 21911 | -4/Factory | Evolved 2 slots: Propulsion x1, Utility x1 22377 | -4/Factory | Lost 4 parts (1p1n1u1w) 22547 | -4/Factory | Repaired Structural Scanner 22592 | -4/Factory | Repaired Imp. Medium Armor Plating 22661 | -4/Factory | First assault squad dispatched 22881 | -4/Factory | Repaired Enh. Gauss Cannon 23115 | -4/Factory | Build established: Hacker-Mutant 23372 | -4/Factory | Identified exit to Research 23372 | -4/Factory | Discovered exit to Research (range 14) 24228 | -4/Factory | Build established: Hacker-Tank 24328 | -4/Factory | Identified exit to Upper Caves 24328 | -4/Factory | Discovered exit to Upper Caves (range 11) 24368 | -4/Factory | Fabricated M-30 Cleanser? 24455 | -4/Factory | Entered Upper Caves 24466 | -4/Upper Caves | Attracted the attention of an 0b10 checkpoint 24862 | -4/Upper Caves | Learned Research trap positions 24862 | -4/Upper Caves | Learned Factory stockpile data 24862 | -4/Upper Caves | Learned Armory garrison access intel 25010 | -4/Upper Caves | Found Alien Artifact 25010 | -4/Upper Caves | Identified Dimensional Node Initializer 25010 | -4/Upper Caves | Initialized slip node 25156 | -4/Upper Caves | Identified exit to Upper Caves 25156 | -4/Upper Caves | Discovered exit to Upper Caves (range 8) 25301 | -4/Upper Caves | Build established: Hacker-Gunner 25922 | -4/Upper Caves | Learned Research trap positions 26083 | -4/Upper Caves | Entered another Upper Caves area 26088 | -4/Upper Caves | Encountered a Warlord checkpoint 26166 | -4/Upper Caves | Discovered exit to Research (range 15) 26350 | -4/Upper Caves | Attracted the attention of an 0b10 checkpoint 26391 | -4/Upper Caves | Build established: Hacker-Tank 26535 | -4/Upper Caves | Identified exit to Zhirov 26535 | -4/Upper Caves | Discovered exit to Zhirov (range 9) 26776 | -4/Upper Caves | Learned location of 1 exit from Research 26814 | -4/Upper Caves | Attracted the attention of an 0b10 base 26847 | -4/Upper Caves | Destroyed 7 combat bots 26849 | -4/Upper Caves | Learned Research emergency access door positions 26856 | -4/Upper Caves | Learned Extension emergency access door positions 26856 | -4/Upper Caves | Learned Research terminal intel 26856 | -4/Upper Caves | Learned Factory garrison access intel 27227 | -4/Upper Caves | Entered Zhirov 27227 | -4/Zhirov | Identified exit to Proximity Caves 27227 | -4/Zhirov | Discovered exit to Proximity Caves (range 3) 27268 | -4/Zhirov | Met Zhirov 27296 | -4/Zhirov | Learned location of Quarantine (-2) 27296 | -4/Zhirov | Learned location of Testing (-3) 27296 | -4/Zhirov | Learned location of Command (-1) 27319 | -4/Zhirov | Zhirov requested help retrieving the SGEMP Prototype 27348 | -4/Zhirov | Found Alien Artifact 27362 | -4/Zhirov | Found Alien Artifact 27466 | -4/Zhirov | Entered Proximity Caves 28255 | -3/Proximity Caves | Build established: Hacker-Mutant 28904 | -3/Proximity Caves | Spotted B-86 Titan 28944 | -3/Proximity Caves | Destroyed B-86 Titan 29342 | -3/Proximity Caves | Discovered exit to Research (range 15) 29414 | -3/Proximity Caves | Found Prototype Launcher 29415 | -3/Proximity Caves | Identified Tesla Bomb Launcher 29427 | -3/Proximity Caves | Found Prototype Launcher 29427 | -3/Proximity Caves | Identified Mni. Smartbomb Launcher 29495 | -3/Proximity Caves | Entered Research 29495 | -3/Research | Evolved 2 slots: Propulsion x1, Utility x1 29496 | -3/Research | Identified exit to Research 29497 | -3/Research | Loaded intel: 103 trap records 29499 | -3/Research | Loaded intel: 23 terminal locations 30012 | -3/Research | Identified exit to Armory 30012 | -3/Research | Discovered exit to Armory (range 13) 30201 | -3/Research | Build established: Hacker-Tank 30525 | -3/Research | Lost 3 parts (1n2u) 31645 | -3/Research | Spotted B-86 Titan 31648 | -3/Research | Destroyed B-86 Titan 31841 | -3/Research | Build established: Scavenger-Tank 32094 | -3/Research | Spotted B-86 Titan 32113 | -3/Research | Destroyed B-86 Titan 32140 | -3/Research | Found Prototype Launcher 32141 | -3/Research | Identified Hellfire Missile Launcher 32503 | -3/Research | Found Unknown Launcher 32504 | -3/Research | Identified Fusion Bomb Launcher 32691 | -3/Research | Fabricated Exp. Heat Sink (x1) 32908 | -3/Research | Identified exit to Testing 32908 | -3/Research | Discovered exit to Testing (range 4) 33082 | -3/Research | Entered Testing 33083 | -3/Testing | Maximum security lockdown engaged 33207 | -3/Testing | Found Prototype Ballistic Cannon 33209 | -3/Testing | Identified Omega Cannon 33276 | -3/Testing | System corruption reached 10% 33318 | -3/Testing | Destroyed 10 combat bots 33327 | -3/Testing | Core integrity fell below 50% 33329 | -3/Testing | Identified Integrated Dissipator 33329 | -3/Testing | Installed Integrated Dissipator, increased core heat dissipation (+20) 33330 | -3/Testing | Identified Transdimensional Reconstructor 33330 | -3/Testing | Warped through subspace 33330 | -3/Testing | Spotted Executioner 33336 | -3/Testing | Spotted Investigator 33336 | -3/Testing | Scanned by Researcher 33338 | -3/Testing | Core integrity fell below 20% 33346 | -3/Testing | Destroyed by G-67 Veteran with Field Laser Last Messages --------------- 33343_ Adv. Cryofiber Web destroyed. 33343_ Slug penetrates Terminal. 33343_ Penetrated by Slug. 33343_ Stasis bubble strength at 152. 33344_ M-36 Artificer stasis bubble strength at 120. 33344_ Slug penetrates Wall. 33344_ Adv. Matter Compressor destroyed. 33344_ Slug penetrates Wall. 33344_ Penetrated by Slug. 33344_ Slug penetrates Terminal. 33344_ Stasis bubble strength at 146. 33345_ M-36 Artificer stasis bubble strength at 110. 33345_ Penetrated by Slug. 33345_ Slug penetrates Wall. 33345_ Stasis bubble strength at 140. 33346_ M-36 Artificer stasis bubble strength at 100. 33346_ Slug penetrates G-67 Veteran. 33346_ Held in stasis. 33346_ Investigator is analyzing... 33346_ Stasis bubble strength at 134. Map ----- +----------------------------------------------------+ | ###########?????????????????????????????????????? | | ##############??????????????????????????????????? | | ?????????????????????????????????? | | ?????????????????????????????????? | | ?????????????????????????????????? | | ??????????????????????? | | +####+############+########??????????????????????? | | ##??## ##??????????????????????? | | """ ##??## """" ##??????????????????????? | | """" ###### """" " "" ##??????????????????????? | | """" ###### """" "R"" ##??????????????????????? | | """ + + """" """" ##??????????????????????? | | ###### ##??????????????????????? | | #####################+#####??????+;??????????????? | | ### ????? ?????????????? | | g + "???? ??????????????? | | ##########+######### ### "?""? ???????????????? | | ########## """"" # ### """" ????????????????? | | ##??????## """"" # ### """" ?????????????????? | | ##??????## "" F" # ### ? ??????????????????? | | ########## ! # ### ? ???????????????????? | | %#= ###### # ###;##;#???????????????????? | | =%!=/% # """"""" # ; ;# #???????????????????? | | %[%%% " # """"""" # ; ;;;;#########???????????? | | !%%[= " # """"""" #=!= ????????? | | [%%=% ###########!!= @ ????????? | | %[%[!% # #########!!!b ????????? | | % !] ]##????????#m[ ????????? | | ! [ " ##????????#hg g ###+?????????? | | # """ ##????????# Egpgg ###### #????????????? | | # ##????????# i h ??????#????????????? | | ###########????????# i h ??????????????????? | | ###########????????#% h #?????????????????? | | ?????????????????%% ####?????????????????? | | ??????????????????##+#### #????????????????????? | | ??????????????????? "b???c #????????????????????? | | ??????????????????? ???l #????????????????????? | | ?????????????????? ????# #????????????????????? | | ?????????????????? ????? #????????????????????? | | ??????????????????? ????? #????????????????????? | | ???????????????????? ????? ?????????????????????? | | ?????????????????????????????????????????????????? | | ?????????????????????????????????????????????????? | | ?????????????????????????????????????????????????? | | ?????????????????????????????????????????????????? | | ?????????????????????????????????????????????????? | | ?????????????????????????????????????????????????? | | ?????????????????????????????????????????????????? | | ?????????????????????????????????????????????????? | | ?????????????????????????????????????????????????? | +----------------------------------------------------+ Best States ------------- Heat Dissipation 104 Energy Generation 77 Energy Capacity 1710 Matter Stores 700 Matter Capacity 700 Sight Range 22 Robot Scan Range 20 Terrain Scan Density 10 Jamming Range 16 Power Amplification 30 Additional Mass Support 12 Base Temperature (-) 200 Armor Coverage 225 Resistance: KI 35 Resistance: TH 35 Resistance: EX 35 Resistance: EM 35 Resistance: I 35 Resistance: S 35 Resistance: P 35 Core Shielding 20 Power Shielding 66 Propulsion Shielding 90 Point Defense Rating 160 Evasion (%) 55 Targeting Accuracy 20 Matter Filtering 30 Kinecelleration 30 Offensive Hacking 34 Item Schematics ----------------- Adv. Weight Redist. System | -8/Materials | Scanalyzed System Shield | -8/Materials | Scanalyzed Imp. Field Recycling Unit | -6/Factory | Scanalyzed Hvy. Mass Driver | -6/Factory | Scanalyzed Hvy. Phase Cannon | -6/Factory | Hacked Adv. Cooling System | -6/Factory | Hacked Adv. Heat Sink | -6/Factory | Hacked Lance | -6/Factory | Hacked Power Sword | -6/Factory | Scanalyzed Weapon Mount | -4/Factory | Scanalyzed Assault Drone Bay | -4/Zhirov | Free Exp. Heat Sink | -4/Zhirov | Free Exp. Optical Array | -4/Zhirov | Free Imp. Arc Thrower | -4/Zhirov | Free Robot Schematics ------------------ B-48 Gladiator | -6/Factory | Hacked R-10 Processor | -6/Hub_04(d) | Hacked M-30 Cleanser | -4/Factory | Hacked L-61 Swordsman | -3/Research | Hacked Fabricated ------------ Adv. Cooling System | x1 | -6/Factory B-48 Gladiator | x3 | -6/Factory M-30 Cleanser | x1 | -4/Factory Exp. Heat Sink | x1 | -3/Research Alien Tech Used ----------------- Dimensional Node Initializer Integrated Dissipator Transdimensional Reconstructor Achievements -------------- None Challenges ------------ None Game ------ Seed ShockClaymoresMount Manual? 0 Play Time 06:51:02 Cumulative 205.3 hours Start 2024.01.13 @ 13:43:15 End 2024.01.19 @ 17:02:25 Sessions 13 Manual Loads 0 Difficulty Explorer Special Mode None Game No. 146 Rogue 0 Adventurer 102 Explorer 44 Win Type - Total 0 Types 0/0/0/0/0/0/0/0/0 Lore% 48 Gallery% 65 Achievement% 49 Wizard Run 0 Options --------- ASCII 0 Keyboard 0 Movement Mouse Keybinds 0 Fullscreen 0 Font 20/SmallcapsGlow Map View 76x50 Tactical HUD 1 Map Filters NONE Filters NONE Steam 1 RUN: fca6f7fd-0d4b-4e02-bc9e-91b48ad4a832